bitfinex-derivatives/quotes_SOLF0:USTF0_20250730
["timestamp","ask_amount","ask_price","bid_price","bid_amount"]
[1753854413714,2.96,180.57,180.53,5.54]
[1753854413919,2.96,180.57,180.54,2.94]
[1753854414108,5.5391,180.57,180.54,2.94]
[1753854414310,2.96,180.56,180.54,2.94]
[1753854414510,2.96,180.54,180.46,2.94]
[1753854414711,4.45639252,180.52,180.46,2.94]
[1753854414913,2.96,180.51,180.46,2.94]
[1753854415110,2.96,180.51,180.48,2.94]
[1753854415308,2.96,180.51,180.46,2.94]
[1753854415511,2.96,180.51,180.47,5.5419]
[1753854415819,2.96,180.51,180.48,2.94]
[1753854416311,4.45639252,180.52,180.45,119.78]
[1753854416516,2.96,180.47,180.41,120.06]
[1753854416712,2.96,180.47,180.43,5.5429]
[1753854416713,8.502,180.47,180.43,5.5429]
[1753854417015,2.96,180.47,180.42,2.94]
[1753854417210,2.96,180.47,180.45,5.5425]
[1753854417405,2.96,180.47,180.42,2.94]
[1753854417605,2.96,180.47,180.41,120.06]
[1753854417810,2.96,180.47,180.44,2.94]
[1753854418113,2.96,180.47,180.41,120.06]
[1753854418315,2.96,180.47,180.44,2.94]
[1753854418513,2.96,180.47,180.42,2.94]
[1753854419217,2.96,180.47,180.41,120.06]
[1753854419218,2.96,180.46,180.43,8.4832]
[1753854419513,2.96,180.46,180.43,2.94]
[1753854420110,2.96,180.44,180.43,2.94]
[1753854420307,2.96,180.47,180.41,123.0]
[1753854420507,4.45639252,180.48,180.42,5.5435]
[1753854420710,2.96,180.45,180.42,2.94]
[1753854421118,4.6279636,180.58,180.41,120.06]
[1753854421318,2.96,180.42,180.41,123.0]
[1753854421513,4.45639252,180.47,180.41,123.0]
[1753854421716,2.96,180.44,180.42,2.94]
[1753854421916,2.96,180.44,180.43,2.94]
[1753854422423,4.45639252,180.49,180.42,2.94]
[1753854422717,5.5417,180.48,180.44,5.5428]
[1753854422912,4.45639252,180.51,180.45,2.94]
[1753854423110,4.45639252,180.53,180.45,2.94]
[1753854423310,2.96,180.52,180.45,2.94]
[1753854423821,4.45639252,180.53,180.45,2.94]
[1753854424020,2.96,180.51,180.45,2.94]
[1753854425221,2.96,180.5,180.45,2.94]
[1753854425821,5.5416,180.49,180.45,8.4825]
[1753854426015,2.96,180.5,180.4,4.45639252]
[1753854426317,2.96,180.48,180.41,2.94]
[1753854426718,2.96,180.48,180.39,7.39639252]
[1753854426918,2.96,180.48,180.4,2.94]
[1753854428618,5.5426,180.45,180.41,5.5437]
[1753854428930,2.96,180.43,180.42,2.94]
[1753854429329,2.96,180.45,180.39,4.45639252]
[1753854429531,2.96,180.47,180.4,2.94]
[1753854431232,8.502,180.47,180.43,5.543]
[1753854431427,5.542,180.47,180.44,2.94]
[1753854431635,2.96,180.45,180.44,2.94]
[1753854432137,5.542,180.47,180.44,8.4829]
[1753854432335,4.45639252,180.5,180.45,2.94]
[1753854432535,2.96,180.48,180.46,2.94]
[1753854432732,2.96,180.49,180.44,5.67677192]
[1753854433036,4.21965059,180.48,180.44,2.73677192]
[1753854433337,2.96,180.47,180.46,2.94]
[1753854433533,2.96,180.45,180.42,2.73677192]
[1753854433840,2.96,180.45,180.44,8.4828]
[1753854434033,2.96,180.45,180.42,2.94]
[1753854434336,2.96,180.47,180.41,2.94]
[1753854435139,8.5014,180.49,180.41,2.94]
[1753854435334,4.22418163,180.48,180.41,2.94]
[1753854435539,2.96,180.48,180.45,5.5423]
[1753854435738,2.96,180.48,180.47,2.94]
[1753854435932,7.18418163,180.48,180.47,2.94]
[1753854436337,2.96,180.5,180.47,2.94]
[1753854436635,4.22597758,180.49,180.43,2.94]
[1753854436940,2.96,180.5,180.47,5.5417]
[1753854437136,7.18597758,180.49,180.48,2.94]
[1753854437331,2.96,180.51,180.48,2.94]
[1753854437536,5.5399,180.54,180.5,5.541]
[1753854437736,2.96,180.52,180.51,2.94]
[1753854437932,7.1881093,180.52,180.51,2.94]
[1753854438134,4.2281093,180.52,180.51,8.4807]
[1753854439037,7.1881093,180.52,180.51,2.94]
[1753854439437,4.2281093,180.52,180.5,5.541]
[1753854439634,2.96,180.53,180.46,2.94]
[1753854439835,2.96,180.51,180.45,119.94]
[1753854440030,4.23473235,180.5,180.46,7.40100504]
[1753854440234,2.96,180.53,180.47,2.94]
[1753854440440,2.96,180.51,180.47,2.94]
[1753854440831,2.96,180.51,180.5,8.481]
[1753854441733,5.5396,180.55,180.51,5.5406]
[1753854441940,3.14,180.53,180.52,3.18]
[1753854442135,7.37857182,180.53,180.52,3.18]
[1753854442342,4.23857182,180.53,180.52,8.7204]
[1753854443039,3.14,180.52,180.5,3.18]
[1753854443343,3.14,180.53,180.47,3.18]
[1753854443938,3.14,180.52,180.51,8.7207]
[1753854444544,3.14,180.54,180.53,3.18]
[1753854445046,5.5386,180.58,180.5,4.46100504]
[1753854445341,7.38058317,180.57,180.51,3.18]
[1753854445539,3.14,180.59,180.51,3.18]
[1753854445744,4.24127058,180.58,180.54,3.18]
[1753854445943,4.6279636,180.62,180.54,3.18]
[1753854446144,3.14,180.58,180.57,3.18]
[1753854446534,7.38082133,180.58,180.57,3.18]
[1753854446739,7.38082133,180.58,180.57,8.7189]
[1753854447250,3.14,180.58,180.57,8.7189]
[1753854447548,3.14,180.59,180.56,8.7191]
[1753854448856,3.14,180.58,180.57,8.7188]
[1753854450048,3.14,180.58,180.53,4.46100504]
[1753854450049,3.14,180.58,180.56,5.5391]
[1753854450249,3.14,180.57,180.56,8.7191]
[1753854451054,3.14,180.6,180.58,3.18]
[1753854451348,4.25022364,180.59,180.56,3.18]
[1753854451552,4.46100504,180.64,180.54,3.18]
[1753854451744,4.46100504,180.64,180.55,3.18]
[1753854451745,3.14,180.56,180.55,3.18]
[1753854453250,3.14,180.56,180.55,8.7195]
[1753854453451,3.14,180.57,180.56,3.18]
[1753854453848,3.14,180.63,180.56,3.18]
[1753854454144,3.14,180.62,180.58,3.18]
[1753854454546,5.5368,180.64,180.6,5.5378]
[1753854454741,3.14,180.63,180.61,3.18]
[1753854455349,3.14,180.62,180.61,8.7176]
[1753854456453,5.5365,180.65,180.61,5.5376]
[1753854456653,3.14,180.63,180.62,3.18]
[1753854456954,3.14,180.66,180.63,3.18]
[1753854457246,3.14,180.67,180.63,2.73198834]
[1753854457451,3.14,180.67,180.66,3.18]
[1753854457846,2.73198834,180.73,180.66,8.7161]
[1753854458045,2.73198834,180.73,180.67,3.18]
[1753854458046,3.14,180.68,180.67,3.18]
[1753854458652,3.14,180.68,180.67,8.7158]
[1753854458852,3.14,180.7,180.68,3.18]
[1753854459047,3.14,180.74,180.66,3.18]
[1753854459247,3.14,180.7,180.68,3.18]
[1753854459548,3.14,180.69,180.65,2.73198834]
[1753854459747,3.14,180.68,180.61,5.91198834]
[1753854460251,3.14,180.65,180.62,3.18]
[1753854460846,3.14,180.65,180.64,5.5367]
[1753854461053,3.14,180.67,180.65,3.18]
[1753854461251,3.14,180.66,180.65,3.18]
[1753854462254,3.14,180.66,180.63,5.537]
[1753854462449,3.14,180.66,180.63,3.18]
[1753854462850,3.14,180.64,180.6,5.5379]
[1753854463053,3.14,180.64,180.6,8.7179]
[1753854463252,8.677,180.64,180.6,8.7179]
[1753854463454,4.45295446,180.65,180.58,8.7183]
[1753854463750,5.5379,180.61,180.55,3.18]
[1753854463950,3.14,180.62,180.55,3.18]
[1753854465458,3.14,180.58,180.55,3.18]
[1753854465855,3.14,180.58,180.54,119.62]
[1753854465856,8.6788,180.58,180.53,5.5401]
[1753854466052,3.14,180.57,180.53,3.18]
[1753854466361,3.14,180.56,180.55,3.18]
[1753854466656,3.14,180.55,180.53,3.18]
[1753854466856,3.14,180.55,180.54,3.18]
[1753854467462,3.14,180.55,180.54,8.7197]
[1753854467958,5.5383,180.59,180.54,8.7197]
[1753854467959,3.14,180.57,180.54,8.7197]
[1753854468257,3.14,180.56,180.55,3.18]
[1753854468452,3.14,180.56,180.54,5.5397]
[1753854468755,3.14,180.56,180.53,3.18]
[1753854468952,4.45295446,180.59,180.53,3.18]
[1753854469153,3.14,180.55,180.53,3.18]
[1753854469560,3.14,180.55,180.54,3.18]
[1753854475663,2.99,180.56,180.53,3.11]
[1753854475864,2.99,180.56,180.52,5.5404]
[1753854476463,2.99,180.56,180.53,3.11]
[1753854476667,7.44295446,180.63,180.53,4.45295446]
[1753854476968,5.5377,180.61,180.54,3.11]
[1753854477262,2.99,180.6,180.58,3.11]
[1753854477470,2.99,180.59,180.58,3.11]
[1753854479164,2.99,180.58,180.57,3.11]
[1753854479360,2.99,180.57,180.56,3.11]
[1753854479566,2.99,180.57,180.53,119.34]
[1753854479765,2.99,180.57,180.5,3.11]
[1753854480170,8.529,180.57,180.5,3.11]
[1753854480367,2.99,180.56,180.5,3.11]
[1753854481863,2.99,180.57,180.5,3.11]
[1753854482068,2.99,180.56,180.52,3.11]
[1753854483165,2.99,180.56,180.55,3.11]
[1753854483871,5.5385,180.59,180.56,3.11]
[1753854484163,2.99,180.57,180.56,3.11]
[1753854484570,4.45295446,180.6,180.56,3.11]
[1753854484871,2.99,180.58,180.55,8.6494]
[1753854486666,2.99,180.58,180.55,5.5394]
[1753854486872,2.99,180.57,180.56,3.11]
[1753854487072,2.99,180.57,180.54,8.6497]
[1753854487274,2.99,180.57,180.55,3.11]
[1753854487573,2.99,180.57,180.52,3.11]
[1753854487766,2.99,180.57,180.53,8.6499]
[1753854487968,2.99,180.57,180.54,3.11]
[1753854488666,2.99,180.57,180.53,2.73395916]
[1753854488868,2.99,180.59,180.54,3.11]
[1753854489568,2.99,180.59,180.57,5.5388]
[1753854489771,2.99,180.59,180.58,3.11]
[1753854490274,2.99,180.59,180.58,8.6486]
[1753854490474,2.99,180.59,180.58,3.11]
[1753854491672,2.99,180.59,180.58,8.6486]
[1753854491867,5.5374,180.62,180.59,3.11]
[1753854492169,2.99,180.64,180.59,2.73395916]
[1753854492366,2.99,180.63,180.6,3.11]
[1753854492573,2.99,180.67,180.6,3.11]
[1753854492872,4.64796809,180.69,180.55,119.24]
[1753854492873,2.99,180.65,180.58,5.84395916]
[1753854493068,2.99,180.63,180.56,3.11]
[1753854493269,5.5374,180.62,180.56,3.11]
[1753854493468,2.99,180.63,180.56,3.11]
[1753854493668,2.99,180.63,180.57,3.11]
[1753854494172,2.99,180.61,180.59,3.11]
[1753854494374,2.99,180.61,180.57,3.11]
[1753854494577,2.99,180.61,180.55,119.24]
[1753854494578,5.5382,180.6,180.55,127.8892]
[1753854494775,2.99,180.59,180.55,127.8892]
[1753854494972,2.99,180.59,180.55,122.35]
[1753854495279,2.99,180.59,180.56,8.6491]
[1753854496779,5.5383,180.59,180.56,3.11]
[1753854496973,2.99,180.58,180.55,119.24]
[1753854497173,2.99,180.58,180.55,122.35]
[1753854497471,2.99,180.57,180.56,3.11]
[1753854500487,2.99,180.61,180.56,3.11]
[1753854500785,2.99,180.65,180.6,3.11]
[1753854500988,2.99,180.64,180.62,5.5371]
[1753854501190,2.99,180.64,180.63,3.11]
[1753854501488,2.99,180.64,180.63,8.647]
[1753854501789,4.64796809,180.7,180.63,3.11]
[1753854501790,3.02,180.66,180.63,3.11]
[1753854501981,3.02,180.65,180.64,2.96]
[1753854504491,3.02,180.65,180.64,8.4967]
[1753854504989,3.02,180.65,180.64,2.96]
[1753854505783,3.02,180.65,180.64,8.4967]
[1753854505988,3.02,180.65,180.64,2.96]
[1753854508186,3.02,180.66,180.63,5.5369]
[1753854508689,5.5362,180.66,180.63,2.96]
[1753854508991,3.02,180.69,180.63,2.96]
[1753854509193,3.97554057,180.68,180.63,2.96]
[1753854509381,3.02,180.66,180.63,2.96]
[1753854509588,8.5561,180.66,180.63,2.96]
[1753854509786,5.5361,180.66,180.63,2.96]
[1753854509989,3.02,180.64,180.63,2.96]
[1753854511691,2.73395916,180.68,180.6,2.96]
[1753854511891,3.02,180.65,180.59,8.4982]
[1753854512688,3.02,180.63,180.61,2.96]
[1753854512895,3.02,180.65,180.62,2.96]
[1753854513200,3.02,180.64,180.62,2.96]
[1753854513393,3.02,180.64,180.63,2.96]
[1753854513691,3.02,180.7,180.64,2.96]
[1753854513894,3.97392992,180.69,180.64,2.96]
[1753854514092,3.97392992,180.68,180.64,2.96]
[1753854514291,4.65232078,180.73,180.66,2.96]
[1753854514493,3.02,180.69,180.66,2.96]
[1753854514794,4.65232078,180.73,180.66,2.96]
[1753854514995,6.99299389,180.72,180.67,2.73395916]
[1753854515293,3.02,180.73,180.7,2.96]
[1753854515494,3.02,180.71,180.7,2.96]
[1753854516398,3.02,180.71,180.7,8.4949]
[1753854516586,3.02,180.73,180.69,2.73395916]
[1753854516791,3.02,180.75,180.7,2.96]
[1753854516990,3.02,180.74,180.73,2.96]
[1753854517690,3.02,180.74,180.73,8.494]
[1753854517894,4.65232078,180.81,180.73,8.494]
[1753854517895,3.02,180.76,180.75,2.96]
[1753854518297,8.5533,180.76,180.73,2.96]
[1753854518598,3.02,180.74,180.73,2.96]
[1753854519802,5.5328,180.77,180.74,2.96]
[1753854520003,3.02,180.75,180.74,2.96]
[1753854521602,3.02,180.76,180.75,2.96]
[1753854522599,5.5327,180.78,180.75,2.96]
[1753854522803,3.02,180.77,180.73,2.73395916]
[1753854523000,3.02,180.77,180.76,2.96]
[1753854525102,3.02,180.79,180.76,2.96]
[1753854525707,3.02,180.78,180.76,2.96]
[1753854525902,3.02,180.8,180.77,5.69395916]
[1753854526102,3.02,180.8,180.78,2.96]
[1753854526302,3.02,180.82,180.79,2.73395916]
[1753854526704,3.02,180.81,180.8,2.96]
[1753854527406,2.73395916,180.86,180.79,2.73395916]
[1753854527710,3.02,180.82,180.81,2.96]
[1753854528704,2.73395916,180.88,180.81,2.96]
[1753854528903,3.02,180.84,180.82,2.96]
[1753854529112,3.02,180.83,180.81,5.5313]
[1753854529510,3.02,180.83,180.82,2.96]
[1753854531111,5.5301,180.86,180.82,5.5312]
[1753854531408,118.72,180.94,180.72,142.50596549]
[1753854531409,3.1,180.94,180.86,3.09]
[1753854531613,3.1,180.94,180.85,2.73395916]
[1753854531614,3.1,180.92,180.89,3.09]
[1753854532817,5.5285,180.91,180.88,3.09]
[1753854533115,3.1,180.89,180.88,3.09]
[1753854536308,3.1,180.91,180.88,3.09]
[1753854536515,3.1,180.91,180.88,5.5291]
[1753854536907,2.73395916,180.96,180.89,3.09]
[1753854537104,3.1,180.94,180.89,3.09]
[1753854537316,3.1,180.93,180.91,3.09]
[1753854538018,3.1,181.0,180.93,3.09]
[1753854538218,3.1,181.03,180.98,3.09]
[1753854538420,3.1,181.03,180.97,2.73395916]
[1753854539018,5.83395916,181.03,180.96,3.09]
[1753854539319,3.1,180.99,180.96,3.09]
[1753854539717,3.1,180.98,180.96,3.09]
[1753854539919,5.5261,180.99,180.96,3.09]
[1753854540115,3.1,181.03,180.96,3.09]
[1753854541012,3.1,181.03,180.98,5.5263]
[1753854541214,3.1,181.03,181.0,3.09]
[1753854541514,2.73395916,181.05,181.0,3.09]
[1753854541720,3.1,181.02,181.01,3.09]
[1753854542619,3.1,181.01,181.0,3.09]
[1753854542917,3.1,181.02,181.01,3.09]
[1753854543120,5.5241,181.06,181.02,3.09]
[1753854543319,3.1,181.05,181.02,3.09]
[1753854543713,3.1,181.05,180.91,119.92]
[1753854543714,5.5234,181.08,181.03,8.25845916]
[1753854543916,3.1,181.1,181.05,3.09]
[1753854544316,3.1,181.08,181.05,3.09]
[1753854544918,5.5242,181.06,181.03,5.82395916]
[1753854545123,8.6242,181.06,181.03,5.82395916]
[1753854545418,3.1,181.05,181.01,2.73395916]
[1753854545625,3.1,181.07,181.01,3.09]
[1753854545823,3.1,181.07,181.01,8.6152]
[1753854546022,2.73395916,181.08,181.01,5.5252]
[1753854546219,2.73395916,181.08,181.03,3.09]
[1753854546424,3.1,181.04,181.03,3.09]
[1753854547120,3.1,181.04,181.0,3.09]
[1753854547326,3.1,181.04,180.97,2.73395916]
[1753854547523,5.5249,181.03,180.98,5.5261]
[1753854547728,3.1,181.02,180.98,5.5261]
[1753854547926,3.1,181.02,181.01,3.09]
[1753854548128,3.1,181.05,180.98,3.09]
[1753854548429,3.1,181.07,181.0,3.09]
[1753854549025,2.73395916,181.09,181.02,3.09]
[1753854549226,2.73395916,181.07,180.99,2.73395916]
[1753854549426,3.1,181.04,181.0,3.09]
[1753854549928,5.5249,181.03,181.0,3.09]
[1753854550229,3.1,181.04,180.99,2.73395916]
[1753854550528,3.1,181.04,180.91,136.46]
[1753854550529,3.1,181.08,181.02,3.09]
[1753854551227,2.73395916,181.13,181.06,3.09]
[1753854551527,5.5228,181.1,181.06,3.09]
[1753854551717,3.1,181.09,181.05,8.25795916]
[1753854551922,3.1,181.09,181.08,3.09]
[1753854552122,3.1,181.1,181.08,3.09]
[1753854552519,3.1,181.1,181.05,2.73395916]
[1753854552720,3.1,181.1,181.09,3.09]
[1753854553429,5.5227,181.1,181.06,3.09]
[1753854553628,3.1,181.08,181.07,3.09]
[1753854554730,3.1,181.13,181.07,3.09]
[1753854555331,3.1,181.14,181.06,3.09]
[1753854555929,5.5221,181.12,181.07,5.5236]
[1753854556135,3.1,181.14,181.06,3.09]
[1753854556436,3.1,181.14,181.05,4.42918397]
[1753854556437,3.1,181.13,181.1,3.09]
[1753854556743,3.1,181.12,181.11,3.09]
[1753854557041,3.1,181.12,181.09,3.09]
[1753854557236,3.1,181.11,181.1,3.09]
[1753854557444,5.522,181.13,181.05,4.42918397]
[1753854557642,3.1,181.11,181.07,3.09]
[1753854558137,3.1,181.11,181.03,4.42918397]
[1753854558343,3.1,181.11,181.04,3.09]
[1753854558737,5.5232,181.09,181.05,5.5242]
[1753854558938,3.1,181.08,181.03,3.09]
[1753854559144,5.5241,181.06,181.02,8.615]
[1753854559344,5.5241,181.06,181.03,3.09]
[1753854559539,3.1,181.07,181.03,3.09]
[1753854559736,3.1,181.1,181.03,3.09]
[1753854559937,3.1,181.1,181.04,3.09]
[1753854560136,3.1,181.1,181.07,5.5235]
[1753854560342,4.42918397,181.15,181.09,3.09]
[1753854560540,3.1,181.12,181.1,3.09]
[1753854560836,3.1,181.12,181.11,3.09]
[1753854561747,3.15,181.11,181.1,3.0]
[1753854562039,3.15,181.11,181.05,4.42918397]
[1753854562040,5.5224,181.11,181.05,4.42918397]
[1753854562241,3.15,181.09,180.98,263.20462206]
[1753854562447,3.15,181.09,181.07,3.0]
[1753854562649,3.15,181.11,181.09,3.0]
[1753854562852,3.15,181.13,181.07,3.0]
[1753854563347,3.15,181.13,181.11,3.0]
[1753854563542,3.15,181.13,181.12,3.0]
[1753854564453,3.15,181.14,181.11,5.5224]
[1753854564742,3.15,181.14,181.13,3.0]
[1753854565144,3.15,181.14,181.11,5.5224]
[1753854565145,5.5212,181.15,181.11,5.5224]
[1753854565345,3.15,181.13,181.12,3.0]
[1753854566947,8.6712,181.15,181.12,3.0]
[1753854567246,3.15,181.14,181.13,3.0]
[1753854567452,3.15,181.17,181.09,3.0]
[1753854567844,3.15,181.14,181.11,3.0]
[1753854568043,3.15,181.14,181.08,7.42918397]
[1753854568245,3.15,181.14,181.08,3.0]
[1753854568441,4.42918397,181.16,181.08,3.0]
[1753854568442,3.15,181.12,181.09,3.0]
[1753854568648,3.15,181.11,181.1,3.0]
[1753854569247,3.15,181.1,181.06,4.42918397]
[1753854569451,3.15,181.09,181.08,3.0]
[1753854569954,3.15,181.11,181.02,4.42918397]
[1753854570149,4.42918397,181.1,181.01,3.0]
[1753854570344,5.5238,181.07,181.02,5.5248]
[1753854570550,3.15,181.09,181.01,3.0]
[1753854570849,3.15,181.09,181.03,3.0]
[1753854571553,3.15,181.12,181.05,3.0]
[1753854571955,5.5237,181.07,181.03,3.0]
[1753854572157,3.15,181.1,181.03,3.0]
[1753854572656,3.15,181.07,181.04,3.0]
[1753854572851,3.15,181.06,181.05,3.0]
[1753854573253,3.15,181.06,181.0,4.42918397]
[1753854573460,3.15,181.09,181.03,3.0]
[1753854574852,3.15,181.09,181.05,3.0]
[1753854575050,3.15,181.09,181.03,3.0]
[1753854575451,3.15,181.08,181.03,3.0]
[1753854575651,3.15,181.08,181.02,2.71918685]
[1753854575854,3.15,181.08,181.04,3.0]
[1753854576656,3.15,181.08,181.03,3.0]
[1753854576856,3.15,181.07,181.05,5.524]
[1753854577057,3.15,181.07,181.06,3.0]
[1753854577562,3.15,181.07,181.06,8.5239]
[1753854577861,3.15,181.07,181.06,3.0]
[1753854579056,3.15,181.07,181.06,8.5239]
[1753854580355,2.71918685,181.1,181.07,5.5236]
[1753854580560,7.10646091,181.09,181.08,3.0]
[1753854581460,3.95646091,181.09,181.08,8.5233]
[1753854581661,3.15,181.11,181.09,3.0]
[1753854581966,7.11079918,181.1,181.09,8.523]
[1753854582151,3.96079918,181.1,181.09,8.523]
[1753854585268,3.15,181.12,181.11,3.0]
[1753854585457,7.1187264,181.12,181.11,3.0]
[1753854585661,3.9687264,181.12,181.11,3.0]
[1753854586864,7.1187264,181.12,181.11,3.0]
[1753854587764,3.15,181.11,181.1,3.0]
[1753854588161,3.15,181.11,181.1,8.5227]
[1753854589767,3.15,181.11,181.1,3.0]
[1753854590162,3.15,181.11,181.08,5.71918685]
[1753854590566,5.5218,181.13,181.08,2.71918685]
[1753854590771,3.15,181.1,181.09,3.0]
[1753854592468,3.04,181.14,181.07,2.71918685]
[1753854592666,3.04,181.12,181.05,3.15]
[1753854592965,2.71918685,181.09,181.01,2.71918685]
[1753854593167,5.5241,181.06,181.02,5.5249]
[1753854593468,5.5241,181.06,181.03,3.15]
[1753854593661,3.04,181.05,181.04,3.15]
[1753854594061,2.71918685,181.09,181.04,3.15]
[1753854594267,3.04,181.07,181.04,3.15]
[1753854594668,3.04,181.08,181.03,2.71918685]
[1753854594963,2.71918685,181.13,181.07,5.5236]
[1753854595272,3.04,181.09,181.08,3.15]
[1753854595569,5.5226,181.11,181.07,5.5236]
[1753854595768,3.04,181.08,181.07,8.6736]
[1753854596064,3.04,181.09,181.06,3.15]
[1753854596270,3.04,181.08,181.06,3.15]
[1753854596871,5.5224,181.11,181.07,5.5234]
[1753854597070,3.04,181.09,181.08,3.15]
[1753854597266,3.04,181.08,181.06,3.15]
[1753854597465,3.04,181.08,181.06,8.6737]
[1753854597668,3.04,181.08,181.07,3.15]
[1753854597870,5.5227,181.11,181.05,2.71918685]
[1753854598068,3.04,181.09,181.08,3.15]
[1753854599369,3.04,181.09,181.06,3.15]
[1753854599765,3.04,181.09,181.0,3.15]
[1753854599965,3.04,181.07,181.02,3.15]
[1753854600369,3.04,181.07,181.04,3.15]
[1753854600674,3.04,181.05,181.04,3.15]
[1753854602172,3.04,181.05,181.03,5.5248]
[1753854602372,3.04,181.06,181.03,5.5248]
[1753854602979,3.04,181.06,181.03,8.6748]
[1753854603683,5.5239,181.06,181.03,3.15]
[1753854603880,3.04,181.05,181.01,119.68]
[1753854604075,3.04,181.03,181.01,119.68]
[1753854604579,3.04,181.01,180.98,148.43072206]
[1753854604773,5.5254,181.02,180.98,151.58072206]
[1753854604981,5.5254,181.02,180.99,3.15]
[1753854605183,5.5249,181.03,180.99,3.15]
[1753854605477,5.5249,181.03,181.0,3.15]
[1753854605683,3.04,181.01,181.0,3.15]
[1753854605873,3.04,181.03,180.99,3.15]
[1753854606673,3.04,181.05,181.01,3.15]
[1753854606881,3.04,181.05,181.0,8.6757]
[1753854607383,5.5245,181.04,181.01,3.15]
[1753854607580,3.04,181.02,181.01,3.15]
[1753854608180,3.04,181.01,181.0,8.6757]
[1753854608574,5.5243,181.05,181.01,5.5253]
[1753854608781,3.04,181.03,181.01,8.6753]
[1753854608973,3.04,181.02,181.01,8.6753]
[1753854609378,3.04,181.0,180.99,3.15]
[1753854610579,3.04,181.03,180.99,3.15]
[1753854610781,3.04,181.05,181.0,3.15]
[1753854611189,2.71918685,181.06,181.0,3.15]
[1753854611392,3.04,181.03,181.0,3.15]
[1753854611884,3.04,181.03,181.02,3.15]
[1753854612284,3.04,181.05,181.01,119.48]
[1753854612481,3.04,181.05,181.04,3.15]
[1753854612685,3.04,181.05,181.02,3.15]
[1753854612882,3.04,181.04,181.03,3.15]
[1753854613186,3.04,181.06,181.01,119.48]
[1753854613491,3.04,181.05,181.04,3.15]
[1753854614179,3.04,181.07,181.04,3.15]
[1753854614386,2.71918685,181.11,181.06,3.15]
[1753854614587,3.94649016,181.1,181.06,3.15]
[1753854614887,6.98649016,181.09,181.07,3.15]
[1753854615084,3.04,181.08,181.07,3.15]
[1753854615277,7.3409192,181.13,181.07,3.15]
[1753854615477,3.94627467,181.12,181.06,119.5]
[1753854615681,3.04,181.1,181.08,3.15]
[1753854615885,3.94627467,181.09,181.08,3.15]